bitfinex/quotes_SOLUSD_20260306
["timestamp","ask_amount","ask_price","bid_price","bid_amount"]
[1772805978615,11.70302406,85.448,85.403,0.5]
[1772805979119,11.69946416,85.474,85.403,0.28432314]
[1772805979321,40.94812457,85.474,85.404,0.5]
[1772805979519,10.75651411,85.47,85.404,0.5]
[1772805980699,11.70014859,85.469,85.404,0.5]
[1772805980901,11.70014859,85.469,85.407,0.5]
[1772805981101,40.95052006,85.469,85.407,0.5]
[1772805982106,10.75651411,85.46,85.407,0.5]
[1772805982623,10.75651411,85.45,85.407,0.5]
[1772805982810,40.96010485,85.449,85.407,0.5]
[1772805984124,10.75651411,85.44,85.401,0.74479221]
[1772805984326,40.96010485,85.449,85.401,12.95413831]
[1772805984829,40.96010485,85.449,85.402,0.5]
[1772805985039,40.96010485,85.449,85.403,12.20919054]
[1772805985235,40.96010485,85.449,85.404,0.5]
[1772805986237,40.96010485,85.449,85.406,0.5]
[1772805986628,9.6247605,85.449,85.427,0.5]
[1772805987934,99.45126301,85.469,85.427,0.5]
[1772805988523,10.75651411,85.46,85.427,0.5]
[1772805988939,99.45126301,85.469,85.427,0.5]
[1772805991236,7.62590853,85.468,85.427,0.5]
[1772805991435,7.62590853,85.467,85.427,0.5]
[1772805991746,99.45126301,85.469,85.427,0.5]
[1772805991923,7.62681868,85.468,85.427,0.5]
[1772805992125,99.45126301,85.469,85.429,0.5]
[1772805992325,0.49550625,85.459,85.404,29.27252512]
[1772805992521,0.49550625,85.459,85.405,11.70891633]
[1772805992749,0.49550625,85.459,85.405,40.98120717]
[1772805992941,0.49550625,85.468,85.405,40.98120717]
[1772805993245,11.69955094,85.474,85.406,0.28432314]
[1772805994046,11.69955094,85.474,85.407,40.98024751]
[1772805994249,11.69955094,85.474,85.407,99.52345825]
[1772805994447,11.69955094,85.474,85.408,0.48493569]
[1772805995927,0.49550625,85.471,85.41,0.48493569]
[1772805996524,40.94908273,85.472,85.41,0.48493569]
[1772805997748,0.49550625,85.471,85.41,0.48493569]
[1772805997948,0.49550625,85.471,85.409,99.52112774]
[1772805997949,0.49550625,85.469,85.412,0.48493569]
[1772805998141,0.49550625,85.467,85.412,0.48493569]
[1772805999035,40.95004095,85.47,85.412,0.48493569]
[1772805999346,40.95004095,85.47,85.413,0.48493569]
[1772805999347,0.49550625,85.469,85.413,0.48493569]
[1772805999934,0.49550625,85.467,85.415,0.48493569]
[1772806000338,0.49550625,85.477,85.416,0.48493569]
[1772806000540,7.66937741,85.476,85.416,0.48493569]
[1772806000741,0.49550625,85.474,85.416,0.48493569]
[1772806000941,0.49550625,85.459,85.401,0.74479221]
[1772806001141,0.49550625,85.439,85.402,0.48493569]
[1772806001439,0.49550625,85.437,85.402,0.48493569]
[1772806001841,11.70466782,85.436,85.403,11.70919054]
[1772806002155,0.49550625,85.458,85.404,0.48493569]
[1772806002353,40.95531189,85.459,85.404,0.48493569]
[1772806002354,0.49550625,85.456,85.404,0.48493569]
[1772806002659,0.49550625,85.454,85.404,0.48493569]
[1772806002856,0.49550625,85.452,85.404,0.48493569]
[1772806003176,11.70098368,85.463,85.405,0.48493569]
[1772806003345,11.70021946,85.469,85.405,0.48493569]
[1772806003541,7.68640886,85.468,85.405,0.48493569]
[1772806003733,11.70021946,85.469,85.404,0.28432314]
[1772806003734,11.70021946,85.469,85.406,1.45520106]
[1772806003932,7.68688288,85.468,85.409,0.48493569]
[1772806004136,7.68688288,85.467,85.41,0.48493569]
[1772806004332,11.70021946,85.469,85.41,0.48493569]
[1772806004549,7.68901106,85.468,85.41,0.48493569]
[1772806004756,0.49550625,85.466,85.41,0.48493569]
[1772806004947,8.18451731,85.465,85.41,0.48493569]
[1772806005150,0.49550625,85.463,85.41,0.48493569]
[1772806005342,7.68901106,85.462,85.41,0.48493569]
[1772806005539,0.49550625,85.46,85.41,0.48493569]
[1772806005747,0.49550625,85.458,85.41,0.48493569]
[1772806005949,11.70192847,85.456,85.412,0.48493569]
[1772806006143,7.68901106,85.455,85.412,0.48493569]
[1772806006460,7.68901106,85.454,85.412,0.48493569]
[1772806006666,0.49550625,85.452,85.412,0.48493569]
[1772806006843,7.68901106,85.451,85.412,0.48493569]
[1772806007159,11.70028548,85.468,85.413,0.48493569]
[1772806007349,11.70028548,85.468,85.411,40.97832831]
[1772806007350,0.49550625,85.467,85.414,0.48493569]
[1772806008053,0.49550625,85.465,85.415,11.70754551]
[1772806008261,0.49550625,85.465,85.416,0.48493569]
[1772806008564,0.49550625,85.459,85.415,11.70754551]
[1772806009445,0.49550625,85.457,85.409,0.48493569]
[1772806010639,11.70192847,85.456,85.41,40.97880809]
[1772806010845,11.70192847,85.456,85.411,0.48493569]
[1772806010846,0.49550625,85.455,85.411,0.48493569]
[1772806012069,11.70069619,85.465,85.411,0.48493569]
[1772806012251,0.49550625,85.485,85.413,0.48493569]
[1772806012456,0.49550625,85.485,85.414,0.48493569]
[1772806012757,11.69809555,85.484,85.416,0.48493569]
[1772806012958,0.49550625,85.492,85.418,0.28432314]
[1772806013148,12.19260262,85.492,85.419,0.48493569]
[1772806013348,11.69709637,85.492,85.419,0.48493569]
[1772806014045,0.49550625,85.501,85.42,99.50831187]
[1772806014046,29.24061359,85.498,85.42,99.50831187]
[1772806014255,11.69535928,85.504,85.425,0.48493569]
[1772806014656,0.49550625,85.513,85.425,0.48493569]
[1772806014657,11.69472797,85.509,85.425,0.48493569]
[1772806015062,12.189659,85.513,85.429,0.45486172]
[1772806015269,12.189659,85.513,85.43,0.45486172]
[1772806015270,11.69415275,85.513,85.43,0.45486172]
[1772806015570,0.46451936,85.516,85.433,0.45486172]
[1772806015866,11.69401611,85.514,85.436,0.45486172]
[1772806016044,1e-08,85.505,85.44,0.45486172]
[1772806016251,1e-08,85.505,85.446,0.45486172]
[1772806016441,1e-08,85.505,85.45,0.45486172]
[1772806016646,1e-08,85.505,85.449,0.28432314]
[1772806016647,1e-08,85.505,85.453,0.45486172]
[1772806017069,1e-08,85.505,85.456,0.45486172]
[1772806017265,1e-08,85.505,85.461,0.73918486]
[1772806017468,10.75651411,85.56,85.461,0.73918486]
[1772806017469,1e-08,85.54,85.471,0.45486172]
[1772806017980,1e-08,85.54,85.476,0.73918486]
[1772806018268,1e-08,85.54,85.473,0.28432314]
[1772806018269,1e-08,85.54,85.487,0.45486172]
[1772806020270,1e-08,85.54,85.489,0.45486172]
[1772806020471,0.46451936,85.539,85.489,0.45486172]
[1772806020671,1e-08,85.54,85.486,7.97889251]
[1772806020672,0.46451936,85.519,85.486,7.97889251]
[1772806020974,0.46451936,85.509,85.486,6.65673159]
[1772806021771,10.75651411,85.52,85.486,6.65673159]
[1772806022158,11.69330791,85.519,85.486,6.65673159]
[1772806022570,40.9265777,85.519,85.486,6.65673159]
[1772806022862,10.75651411,85.5,85.451,29.25634715]
[1772806023056,10.75651411,85.5,85.457,11.70171926]
[1772806023262,40.9265777,85.519,85.464,0.5]
[1772806023983,40.9265777,85.519,85.463,11.70097001]
[1772806023984,10.75651411,85.5,85.463,11.70097001]
[1772806024367,11.69604322,85.499,85.463,11.70097001]
[1772806024563,11.69604322,85.499,85.463,12.20097001]
[1772806024767,11.69467541,85.509,85.464,0.5]
[1772806025087,10.74813272,85.5,85.464,0.5]
[1772806025279,11.69467541,85.509,85.464,0.5]
[1772806025874,40.9217926,85.529,85.464,0.5]
[1772806026179,10.74813272,85.52,85.464,0.5]
[1772806026379,10.74813273,85.54,85.466,0.5]
[1772806026564,10.74813273,85.54,85.449,0.5]
[1772806026565,10.74813272,85.49,85.449,0.5]
[1772806026762,10.74813272,85.48,85.434,11.70494182]
[1772806027165,10.74813272,85.49,85.435,0.5]
[1772806028081,10.74813272,85.5,85.435,0.5]
[1772806028270,11.69741136,85.489,85.436,40.96633737]
[1772806028475,11.69741136,85.489,85.437,0.5]
[1772806029472,29.23557537,85.513,85.438,0.5]
[1772806029790,29.23566283,85.512,85.438,0.5]
[1772806029970,11.69330791,85.519,85.438,0.5]
[1772806030281,1e-08,85.54,85.442,40.96346058]
[1772806030282,29.22903177,85.532,85.442,40.96346058]
[1772806030479,10.74813272,85.52,85.444,0.5]
[1772806030879,0.14216157,85.519,85.444,0.5]
[1772806031372,0.28432314,85.519,85.444,0.5]
[1772806031986,10.74813272,85.52,85.444,0.5]
[1772806032568,10.74813272,85.51,85.446,0.5]
[1772806032982,40.9265777,85.519,85.447,0.5]
[1772806033592,7.63626449,85.518,85.447,0.5]
[1772806033889,7.6356886,85.517,85.447,0.5]
[1772806034095,40.9265777,85.519,85.447,0.5]
[1772806034387,11.69207744,85.528,85.45,0.5]
[1772806034589,10.74813273,85.54,85.455,0.5]
[1772806034590,11.69057389,85.539,85.455,0.5]
[1772806034890,40.91700861,85.539,85.456,0.5]
[1772806035578,10.74813272,85.53,85.456,0.5]
[1772806035891,10.74813272,85.51,85.456,0.5]
[1772806036589,11.69604322,85.499,85.457,11.70179154]
[1772806036887,11.69604322,85.499,85.457,40.9562704]
[1772806037092,11.69604322,85.499,85.458,0.5]
[1772806038393,40.93615129,85.499,85.458,0.5]
[1772806038597,11.69604322,85.499,85.458,0.5]
[1772806038780,40.93154226,85.509,85.459,11.70151768]
[1772806039096,7.62744093,85.508,85.46,0.5]
[1772806039288,40.93154226,85.509,85.46,0.5]
[1772806039478,7.62777719,85.508,85.46,0.5]
[1772806039679,40.93154226,85.509,85.46,0.5]
[1772806039884,40.93232132,85.507,85.461,11.70124384]
[1772806040091,40.93232132,85.507,85.462,0.5]
[1772806040889,11.69358139,85.517,85.462,0.5]
[1772806041295,10.74813272,85.51,85.462,0.5]
[1772806041496,40.92753487,85.517,85.462,0.5]
[1772806041685,11.69057389,85.539,85.465,0.5]
[1772806041890,1e-08,85.54,85.47,0.78432314]
[1772806042093,11.69048295,85.54,85.471,0.5]
[1772806042482,1e-08,85.54,85.471,0.5]
[1772806042889,1e-08,85.54,85.478,0.5]
[1772806043593,11.69057389,85.539,85.478,0.5]
[1772806043774,1e-08,85.54,85.478,0.5]
[1772806044302,1e-08,85.54,85.484,0.5]
[1772806045811,40.89883963,85.577,85.487,0.5]
[1772806046096,10.74813272,85.56,85.49,0.5]
[1772806046599,40.89883963,85.577,85.49,0.5]
[1772806046808,10.74813272,85.57,85.49,0.5]
[1772806047099,7.63044824,85.569,85.49,0.5]
[1772806047299,0.28432314,85.569,85.49,0.5]
[1772806047807,40.90314135,85.568,85.493,0.5]
[1772806047984,40.90314135,85.568,85.495,0.5]
[1772806048989,10.74813272,85.56,85.498,0.5]
[1772806049200,10.74813272,85.54,85.487,0.5]
[1772806049704,0.28432314,85.564,85.487,0.5]
[1772806049887,0.28432314,85.564,85.479,4.02298241]
[1772806049888,3.69383402,85.547,85.479,4.02298241]
[1772806050085,10.74813272,85.52,85.48,11.69864295]
[1772806050584,10.74813272,85.52,85.475,11.69932728]
[1772806050823,10.74813272,85.51,85.475,11.69932728]
[1772806051189,11.69467541,85.509,85.475,11.69932728]
[1772806051512,40.93136394,85.509,85.474,0.5]
[1772806051803,10.74813272,85.5,85.461,11.70124384]
[1772806052105,11.69112059,85.535,85.462,0.5]
[1772806052285,10.74813272,85.53,85.462,0.28432314]
[1772806052486,10.74813272,85.53,85.463,0.5]
[1772806052683,10.74813272,85.51,85.463,0.5]
[1772806053002,10.74813272,85.5,85.463,0.5]
[1772806053309,11.69604322,85.499,85.465,0.5]
[1772806053604,10.74813272,85.52,85.465,0.5]
[1772806053605,29.23423032,85.517,85.465,0.5]
[1772806053989,11.69330791,85.519,85.465,0.5]
[1772806054393,11.68948063,85.547,85.468,0.5]
[1772806054687,40.91318222,85.547,85.469,0.5]
[1772806054887,10.74813272,85.53,85.469,0.5]
[1772806055204,10.74813272,85.49,85.449,0.5]
[1772806056412,40.94093976,85.489,85.439,0.5]
[1772806056595,11.69741136,85.489,85.439,0.5]
[1772806056795,11.69467541,85.509,85.439,0.5]
[1772806057196,10.74813272,85.5,85.439,0.5]
[1772806057397,40.93157265,85.509,85.439,0.5]
[1772806057398,10.74813272,85.49,85.439,0.5]
[1772806057602,40.93157265,85.509,85.439,0.5]
[1772806057806,10.74813272,85.53,85.444,0.5]
[1772806058000,10.74813272,85.53,85.447,0.5]
[1772806058001,7.64573384,85.529,85.447,0.5]
[1772806058207,7.64573384,85.528,85.45,0.5]
[1772806058401,19.33794799,85.527,85.45,0.5]
[1772806058607,40.92274953,85.527,85.453,0.5]
[1772806059206,11.69221415,85.527,85.453,0.5]
[1772806060220,10.74813272,85.53,85.456,0.5]
[1772806060624,11.69057389,85.539,85.459,0.5]
[1772806060919,11.69057389,85.539,85.465,0.5]
[1772806061223,11.68784113,85.559,85.471,0.5]
[1772806061400,7.658324,85.558,85.476,0.28432314]
[1772806061714,7.658324,85.557,85.477,0.5]
[1772806062015,10.74813272,85.55,85.477,0.5]
[1772806062215,7.658324,85.549,85.477,0.5]
[1772806062420,11.68934399,85.548,85.48,0.5]
[1772806062899,10.74813272,85.54,85.48,0.5]
[1772806063695,7.65926046,85.539,85.48,0.5]
[1772806063931,10.74813272,85.52,85.48,0.5]
[1772806064417,10.74813272,85.52,85.46,58.50652032]
[1772806064418,48.58800721,85.519,85.468,29.250565]
[1772806064617,10.74813272,85.5,85.462,0.5]
[1772806064924,10.74813272,85.51,85.462,0.5]
[1772806065217,12.58265762,85.542,85.461,11.70124384]
[1772806065218,0.14216157,85.549,85.465,0.5]
[1772806065417,0.14216157,85.539,85.465,0.5]
[1772806065722,10.74813272,85.51,85.461,11.70124384]
[1772806066095,10.74813272,85.51,85.462,0.5]
[1772806066622,40.93136394,85.509,85.463,11.70097001]
[1772806068016,40.93136394,85.509,85.464,0.5]
[1772806068220,10.74813272,85.5,85.45,0.5]
[1772806068721,10.74813272,85.5,85.386,1.17115217]
[1772806068722,11.69481218,85.508,85.452,0.5]
[1772806069116,11.69481218,85.508,85.453,0.5]
[1772806070602,11.69330791,85.519,85.455,0.5]
[1772806071003,10.74813272,85.51,85.455,0.5]
[1772806071212,10.74813272,85.5,85.454,11.70220235]
[1772806071519,10.74813272,85.48,85.445,11.70343495]
[1772806071717,10.74813272,85.48,85.444,0.5]
[1772806071718,10.74813272,85.48,85.444,11.70350276]
[1772806072929,11.69877981,85.479,85.436,0.5]
[1772806073722,40.94572935,85.479,85.436,0.5]
[1772806073927,40.94572935,85.479,85.426,0.5]
[1772806074226,11.69877981,85.479,85.428,0.5]
[1772806074928,11.69877981,85.479,85.43,0.5]
[1772806075129,40.94572935,85.479,85.43,0.5]
[1772806075909,11.69754819,85.488,85.43,0.5]
[1772806076126,40.94141867,85.488,85.43,0.5]
[1772806076331,10.74813272,85.48,85.43,0.5]
[1772806077317,40.94572935,85.479,85.432,0.5]
[1772806077520,10.74813272,85.47,85.432,0.5]
[1772806077828,40.94572935,85.479,85.432,0.5]
[1772806078132,3.69383402,85.506,85.432,0.5]
[1772806078308,10.74813272,85.49,85.432,0.5]
[1772806078713,10.74813272,85.5,85.433,0.5]
[1772806078934,11.6952225,85.505,85.433,0.5]
[1772806079330,29.23764062,85.507,85.435,0.5]
[1772806080033,11.69358139,85.517,85.436,0.5]
[1772806080231,10.74813272,85.51,85.436,0.5]
[1772806080434,10.74813272,85.5,85.436,0.5]
[1772806080627,11.69358139,85.517,85.44,0.5]
[1772806080930,10.74813272,85.52,85.44,0.5]
[1772806081131,7.65566695,85.519,85.44,0.5]
[1772806081317,19.3491116,85.518,85.445,0.5]
[1772806081517,11.69344465,85.518,85.445,0.5]
[1772806081823,11.69344465,85.518,85.446,0.5]
[1772806083532,29.23087716,85.526,85.452,0.5]
[1772806083731,11.69194074,85.529,85.452,0.5]
[1772806084032,7.66145888,85.528,85.452,0.5]
[1772806084227,10.74813272,85.52,85.452,0.5]
[1772806084429,7.66145888,85.519,85.452,0.5]
[1772806084628,7.66145888,85.518,85.452,0.5]
[1772806084930,10.74333231,85.52,85.452,0.5]
[1772806084931,7.66145888,85.517,85.452,0.5]
[1772806085133,11.69385487,85.515,85.457,0.5]
[1772806085337,7.66145888,85.514,85.457,0.5]
[1772806085644,11.69385487,85.515,85.457,0.5]
[1772806086025,10.74333231,85.51,85.457,0.5]
[1772806086238,10.74333231,85.5,85.457,0.5]
[1772806086938,10.74333231,85.51,85.457,0.5]
[1772806087140,11.69481218,85.508,85.458,40.95579114]
[1772806087441,40.93184263,85.508,85.459,0.5]
[1772806087627,11.69481218,85.508,85.459,0.5]
[1772806087822,10.74333231,85.51,85.459,0.5]
[1772806088033,29.23037226,85.528,85.46,0.5]
[1772806088340,19.35895157,85.527,85.46,0.5]
[1772806088538,7.66673742,85.526,85.46,0.5]
[1772806089118,11.69248757,85.525,85.461,99.46057265]
[1772806089439,11.69248757,85.525,85.463,0.5]
[1772806089643,10.74333231,85.52,85.463,0.5]
[1772806089843,7.67380015,85.519,85.463,0.5]
[1772806090144,11.69248757,85.525,85.463,0.5]
[1772806090342,7.67519575,85.524,85.463,0.5]
[1772806090542,7.67519575,85.523,85.463,0.5]
[1772806090749,10.74333231,85.5,85.453,0.5]
[1772806090929,10.74333231,85.49,85.442,0.5]
[1772806091131,11.69741136,85.489,85.443,11.7037089]
[1772806091334,11.69741136,85.489,85.444,0.5]
[1772806091848,10.74333231,85.5,85.444,0.5]
[1772806092143,7.67552899,85.499,85.444,0.5]
[1772806092321,7.67552899,85.498,85.444,0.5]
[1772806092526,7.67552899,85.497,85.444,0.5]
[1772806092745,10.74333231,85.51,85.444,0.5]
[1772806092949,7.67856729,85.509,85.444,0.5]
[1772806093138,40.93232132,85.507,85.446,0.5]
[1772806093340,7.67856729,85.506,85.447,0.5]
[1772806093531,11.69221415,85.527,85.45,0.5]
[1772806093728,7.6888896,85.526,85.45,0.5]
[1772806093926,40.92274953,85.527,85.45,0.5]
[1772806093927,7.6888896,85.525,85.45,0.5]
[1772806094127,11.69221415,85.527,85.45,0.5]
[1772806094329,7.69110985,85.526,85.45,0.5]
[1772806094643,11.69221415,85.527,85.45,0.5]
[1772806094644,7.69110985,85.525,85.45,0.5]
[1772806094849,7.69110985,85.524,85.45,0.5]
[1772806095045,7.69110985,85.523,85.45,0.5]
[1772806095251,11.69303445,85.521,85.455,0.5]
[1772806095548,7.69110985,85.52,85.455,0.5]
[1772806095849,7.69110985,85.519,85.455,0.5]
[1772806096026,7.69110985,85.518,85.455,0.5]
[1772806096230,10.74333231,85.51,85.455,0.5]
[1772806096560,10.74333231,85.49,85.451,11.70261319]
[1772806096850,9.57436192,85.517,85.448,0.5]
[1772806097027,10.74333231,85.5,85.448,0.5]
[1772806097231,40.93663008,85.498,85.45,0.5]
[1772806097430,7.6872819,85.497,85.45,0.5]
[1772806097640,7.6872819,85.496,85.45,0.5]
[1772806097853,40.93663008,85.498,85.45,0.5]
[1772806098040,7.68726297,85.497,85.45,0.5]
[1772806098243,40.93663008,85.498,85.45,0.5]
[1772806098244,7.68726297,85.496,85.45,0.5]
[1772806098550,40.93663008,85.498,85.45,0.5]
[1772806098746,7.68694689,85.497,85.45,0.5]
[1772806098935,7.68694689,85.496,85.45,0.5]
[1772806099252,40.93663008,85.498,85.45,0.5]
[1772806099445,40.93758771,85.496,85.452,0.5]
[1772806099835,7.68662493,85.495,85.452,0.5]
[1772806100038,40.93758771,85.496,85.452,0.5]
[1772806100237,7.68695326,85.495,85.452,0.5]
[1772806100537,40.93758771,85.496,85.452,0.5]
[1772806101141,7.68482466,85.495,85.452,0.5]
[1772806101456,40.93758771,85.496,85.452,0.5]
[1772806101638,40.93854538,85.494,85.453,11.70233929]
[1772806101955,10.74333231,85.5,85.453,11.70233929]
[1772806101956,40.92801346,85.516,85.454,0.5]
[1772806102144,10.74333231,85.51,85.454,0.5]
[1772806102459,10.74333231,85.5,85.454,0.5]
[1772806102653,7.68866512,85.499,85.454,0.5]
[1772806102952,7.68866512,85.498,85.454,0.5]
[1772806103153,40.92801346,85.516,85.454,0.5]
[1772806103154,7.68866512,85.497,85.454,0.5]
[1772806103454,11.69371813,85.516,85.454,0.5]
[1772806103754,11.69399162,85.514,85.456,0.5]
[1772806103956,11.693807,85.516,85.457,0.5]
[1772806104361,11.69235086,85.526,85.457,0.5]
[1772806104533,7.69088685,85.525,85.457,0.5]
[1772806104734,7.69088685,85.524,85.457,0.5]
[1772806104962,7.69088685,85.523,85.457,0.5]
[1772806105162,11.69235086,85.526,85.457,0.5]
[1772806105455,7.69154951,85.525,85.457,0.5]
[1772806105652,7.69154951,85.524,85.46,0.5]
[1772806105859,11.69235086,85.526,85.46,0.5]
[1772806106055,7.69155183,85.525,85.46,0.5]
[1772806106261,9.61078406,85.545,85.46,0.5]
[1772806106262,11.68989058,85.544,85.463,0.5]
[1772806106448,7.69433468,85.543,85.463,0.5]
[1772806106649,10.74333231,85.54,85.463,0.5]
[1772806106847,7.69433468,85.539,85.463,0.5]
[1772806107248,7.69433468,85.538,85.463,0.5]
[1772806107542,7.69433468,85.537,85.463,0.5]
[1772806107743,11.69112059,85.535,85.465,0.5]
[1772806107943,10.74333231,85.51,85.465,0.5]
[1772806108157,7.69433468,85.509,85.465,0.5]
[1772806108357,10.74333231,85.5,85.465,0.5]
[1772806108564,7.69433468,85.499,85.465,0.5]
[1772806109142,11.69618002,85.498,85.466,11.70055928]
[1772806109358,10.74333231,85.49,85.454,11.70206737]
[1772806109569,7.69433468,85.489,85.454,11.70206737]
[1772806110049,7.69433468,85.489,85.455,0.5]
[1772806110253,11.69618002,85.498,85.455,0.5]
[1772806110451,7.69868243,85.497,85.455,0.5]
[1772806110657,7.69868243,85.496,85.455,0.5]
[1772806110963,7.69868243,85.495,85.455,0.5]
[1772806111150,7.69868243,85.494,85.457,0.5]
[1772806111456,11.69543186,85.504,85.457,0.5]
[1772806111665,7.69978691,85.503,85.457,0.5]
[1772806111840,11.69543186,85.504,85.457,0.5]
[1772806112037,7.70045585,85.503,85.457,0.5]
[1772806112256,7.70045585,85.502,85.457,0.5]
[1772806112566,11.69563285,85.502,85.459,0.5]
[1772806113242,7.70088708,85.501,85.459,0.5]
[1772806113567,7.70088708,85.5,85.459,0.5]
[1772806113873,7.70074549,85.499,85.461,0.5]
[1772806114046,7.70074549,85.498,85.461,0.5]
[1772806114377,7.70074549,85.497,85.456,0.5]
[1772806114544,7.70074549,85.496,85.456,0.5]
[1772806114860,7.70074549,85.495,85.456,0.5]
[1772806115163,7.70074549,85.494,85.456,0.5]
[1772806115473,10.74333231,85.48,85.434,11.7048173]
[1772806115638,10.74333231,85.47,85.428,0.5]
[1772806115844,19.40089408,85.469,85.429,12.20554341]
[1772806116050,7.70074549,85.468,85.429,12.20554341]
[1772806116244,7.70074549,85.467,85.429,12.20554341]
[1772806116468,40.95052006,85.469,85.429,12.20554341]
[1772806116765,10.74333231,85.46,85.429,0.5]
[1772806116946,10.74333231,85.45,85.416,11.70740844]
[1772806117146,7.69557085,85.449,85.416,11.70740844]
[1772806117345,7.69557085,85.448,85.416,11.70740844]
[1772806117645,7.69557085,85.447,85.416,11.70740844]
[1772806117846,19.3989938,85.446,85.416,11.70740844]
[1772806118148,11.70342295,85.446,85.416,11.70740844]
[1772806118847,11.70342295,85.446,85.384,58.55846607]
[1772806118848,7.68368391,85.445,85.401,1.24479221]
[1772806119051,7.68380226,85.444,85.402,12.20932765]
[1772806119252,11.70342295,85.446,85.402,11.70932765]
[1772806119455,11.70342295,85.446,85.401,0.74479221]
[1772806119456,10.74333231,85.43,85.401,0.74479221]
[1772806119663,7.67845092,85.429,85.401,0.74479221]
[1772806119848,40.9706533,85.427,85.401,0.74479221]
[1772806122353,11.70165461,85.458,85.402,0.5]
[1772806122552,7.65451935,85.457,85.402,0.5]
[1772806122767,11.70165461,85.458,85.403,0.5]
[1772806123065,29.24931598,85.473,85.403,0.5]
[1772806123450,11.69891668,85.478,85.403,0.5]
[1772806124046,58.48006415,85.5,85.406,41.48072734]
[1772806124259,10.74333231,85.49,85.408,0.5]
[1772806124463,69.22339646,85.5,85.408,0.5]
[1772806124665,10.74333231,85.47,85.408,0.5]
[1772806124860,10.74333231,85.45,85.408,0.5]
[1772806125468,10.74333231,85.43,85.385,0.5]
[1772806126058,10.74333231,85.42,85.385,0.5]
[1772806126265,11.70699727,85.419,85.385,0.5]
[1772806126466,40.97449045,85.419,85.377,0.5]
[1772806126675,11.70699727,85.419,85.377,0.5]
[1772806126969,11.70699727,85.419,85.37,0.1]
[1772806127171,10.74333231,85.4,85.37,0.1]
[1772806127373,10.74333231,85.4,85.343,1.36504689]
[1772806127374,0.28432314,85.379,85.34,1e-08]
[1772806127669,10.74333231,85.37,85.34,1e-08]
[1772806128070,118.7522075,85.419,85.341,0.5]
[1772806128277,11.71385397,85.369,85.341,0.5]
[1772806128470,11.71385397,85.369,85.34,1e-08]
[1772806128667,10.74333231,85.35,85.34,1e-08]
[1772806128865,11.71385397,85.369,85.341,0.5]
[1772806129174,40.9984889,85.369,85.341,0.5]
[1772806129674,11.71385397,85.369,85.341,0.5]
[1772806129874,22.45567712,85.38,85.342,0.5]
[1772806130251,22.45567712,85.38,85.344,0.5]
[1772806130456,40.97305143,85.422,85.345,0.5]
[1772806130664,40.97305143,85.422,85.347,0.28432314]
[1772806130980,11.70658612,85.422,85.348,0.5]
[1772806131160,10.74333231,85.42,85.348,0.5]
[1772806131476,10.74333231,85.41,85.348,0.5]
[1772806131675,10.74333231,85.42,85.348,0.5]
[1772806131975,58.51836524,85.444,85.343,99.59809238]
[1772806131976,10.74333231,85.44,85.356,0.5]
[1772806132275,11.70699727,85.419,85.359,0.5]
[1772806132476,10.74333231,85.4,85.359,0.5]
[1772806132658,40.97449045,85.419,85.359,0.5]
[1772806133263,11.70699727,85.419,85.359,0.5]
[1772806133665,11.70630192,85.425,85.359,0.5]
[1772806134479,3.69383402,85.457,85.362,0.5]
[1772806134480,11.70425683,85.439,85.362,0.5]
[1772806134683,10.74333231,85.43,85.362,0.5]
[1772806134870,10.74333231,85.42,85.362,0.5]
[1772806135678,10.74333231,85.43,85.362,0.5]
[1772806136280,87.78192628,85.439,85.363,41.0013706]
[1772806136480,10.74333231,85.43,85.365,0.5]
[1772806136786,10.74333231,85.42,85.365,0.5]
[1772806137291,10.74333231,85.41,85.365,0.5]
[1772806137669,10.74333231,85.4,85.357,11.71546957]
[1772806137880,10.74333231,85.4,85.357,12.21546957]
[1772806138296,10.74333231,85.4,85.358,0.5]
[1772806138470,11.70973898,85.399,85.359,11.71522627]
[1772806138671,11.70466782,85.436,85.361,0.5]
[1772806138865,10.74333231,85.4,85.351,0.5]